bitfinex-derivatives/quotes_SOLF0:USTF0_20241002
["timestamp","ask_amount","ask_price","bid_price","bid_amount"]
[1727901826619,4.9205,140.36,140.33,3.5635]
[1727901826814,1.3576,140.36,140.31,8.2]
[1727901827216,3.5634,140.34,140.31,11.7639]
[1727901827425,1.3576,140.36,140.31,8.2]
[1727901827829,3.563,140.35,140.32,3.5636]
[1727901828442,3.5627,140.37,140.34,3.5631]
[1727901828622,2.3384,140.38,140.31,8.2]
[1727901828933,2.3384,140.38,140.36,3.5626]
[1727901829234,2.3384,140.38,140.32,27.36]
[1727901829431,1.0,140.38,140.32,27.36]
[1727901829730,1.0,140.38,140.37,3.5625]
[1727901830029,1.0,140.38,140.37,11.7625]
[1727901831825,1.0,140.38,140.3,76.98]
[1727901831826,4.5624,140.38,140.33,8.2]
[1727901832134,1.0,140.38,140.33,8.2]
[1727901832430,1.0,140.38,140.32,8.2]
[1727901832625,1.3417,140.37,140.32,8.2]
[1727901833426,1.3417,140.37,140.33,3.5634]
[1727901833625,1.3417,140.37,140.32,8.2]
[1727901833833,1.0,140.38,140.32,8.2]
[1727901834720,3.5627,140.37,140.32,8.2]
[1727901834920,1.0,140.38,140.32,8.2]
[1727901835335,4.5624,140.38,140.32,8.2]
[1727901836532,4.5624,140.38,140.35,3.5628]
[1727901837328,1.0,140.38,140.32,8.2]
[1727901837528,1.0,140.38,140.37,3.5625]
[1727901839031,1.0,140.38,140.36,8.16]
[1727901839534,3.5627,140.37,140.3,104.34]
[1727901839834,3.5627,140.37,140.34,3.5631]
[1727901840337,4.5624,140.38,140.31,8.16]
[1727901840539,1.0,140.38,140.31,8.16]
[1727901840731,3.5626,140.37,140.31,8.16]
[1727901840932,1.0,140.38,140.32,3.5636]
[1727901841231,1.0,140.38,140.28,8.16]
[1727901841439,3.5637,140.33,140.29,3.5643]
[1727901841632,3.5637,140.33,140.28,8.16]
[1727901842040,3.5637,140.33,140.29,3.5643]
[1727901842235,3.5637,140.33,140.28,8.16]
[1727901842635,1.3303,140.35,140.29,3.5644]
[1727901842841,1.3303,140.35,140.27,8.28502]
[1727901843434,28.6903,140.35,140.27,0.12502]
[1727901845228,3.5642,140.31,140.28,3.5647]
[1727901846746,3.5644,140.3,140.27,0.12502]
[1727901847451,28.6903,140.35,140.27,0.12502]
[1727901847452,3.5645,140.29,140.27,0.12502]
[1727901848346,3.5644,140.3,140.27,3.68992]
[1727901848539,27.36,140.34,140.27,0.12502]
[1727901849040,27.36,140.34,140.28,3.5647]
[1727901849544,3.5642,140.31,140.28,3.5647]
[1727901849746,3.5642,140.31,140.29,3.5645]
[1727901849952,3.5642,140.31,140.27,0.12502]
[1727901850446,3.5642,140.31,140.28,3.5647]
[1727901850946,27.36,140.34,140.27,0.12502]
[1727901851142,1.3303,140.35,140.31,3.564]
[1727901851451,1.3303,140.35,140.27,0.12502]
[1727901851640,3.5633,140.34,140.27,0.12502]
[1727901852042,3.5633,140.34,140.31,3.5638]
[1727901852947,1.3303,140.35,140.31,3.5638]
[1727901853244,3.5634,140.34,140.31,3.5638]
[1727901853449,1.3303,140.35,140.31,3.5638]
[1727901853853,3.5635,140.33,140.31,3.5638]
[1727901854156,1.3303,140.35,140.31,3.5638]
[1727901854360,1.3303,140.35,140.27,0.12502]
[1727901854361,3.5634,140.34,140.27,0.12502]
[1727901854855,1.3303,140.35,140.27,0.12502]
[1727901855154,1.3303,140.35,140.28,27.36]
[1727901855362,1.428,140.36,140.29,8.16]
[1727901855545,1.428,140.36,140.35,3.563]
[1727901857155,4.5623,140.38,140.33,3.50265977]
[1727901857362,1.0,140.38,140.36,3.5628]
[1727901857762,1.0,140.38,140.37,3.5625]
[1727901858260,1.0,140.38,140.33,8.16]
[1727901858962,1.0,140.38,140.34,3.53579786]
[1727901859167,1.0,140.38,140.33,8.16]
[1727901859168,4.5624,140.38,140.33,8.16]
[1727901859353,1.0,140.38,140.33,8.16]
[1727901859555,1.0,140.38,140.37,3.5625]
[1727901861554,1.0,140.38,140.27,0.12502]
[1727901861759,1.0,140.38,140.29,8.16]
[1727901861970,1.0,140.38,140.3,17.11]
[1727901862261,1.0,140.38,140.36,3.5626]
[1727901862471,1.0,140.38,140.3,17.11]
[1727901862651,3.5626,140.37,140.3,17.11]
[1727901863263,3.5626,140.37,140.34,3.5631]
[1727901864651,3.5626,140.37,140.3,17.11]
[1727901865362,3.5626,140.37,140.34,3.5631]
[1727901865759,1.0,140.38,140.34,3.5631]
[1727901865959,1.0,140.41,140.37,17.11]
[1727901866160,1.12502,140.45,140.4,17.11]
[1727901866368,1.12502,140.45,140.42,3.5612]
[1727901867165,1.12502,140.45,140.42,7.04130303]
[1727901867362,1.12502,140.45,140.42,20.59010303]
[1727901867567,0.06,140.62,140.44,34.22]
[1727901867765,0.40178002,140.55,140.51,17.11]
[1727901867970,0.40178002,140.55,140.54,17.11]
[1727901868161,2.7562,140.61,140.56,3.5577]
[1727901868362,2.7562,140.61,140.56,28.7877]
[1727901868566,1.12502,140.63,140.57,3.5572]
[1727901868762,18.23502,140.63,140.56,8.12]
[1727901869065,3.5562,140.62,140.56,8.12]
[1727901869268,18.23502,140.63,140.54,7.07241252]
[1727901869460,4.5567,140.6,140.54,7.07241252]
[1727901869661,1.0,140.6,140.54,7.07231252]
[1727901869867,1.0,140.6,140.54,3.51431252]
[1727901870269,1.0,140.6,140.55,3.5577]
[1727901870466,1.0,140.6,140.54,3.51431252]
[1727901870669,1.0,140.6,140.55,3.5579]
[1727901870865,1.0,140.6,140.51,0.12502]
[1727901871074,1.0,140.6,140.52,3.49586192]
[1727901871472,1.0,140.6,140.54,3.5581]
[1727901871770,1.0,140.6,140.51,8.24502]
[1727901871962,4.5569,140.6,140.51,8.24502]
[1727901872163,1.0,140.6,140.52,3.47682131]
[1727901872360,1.0,140.6,140.53,3.5584]
[1727901872966,1.4114,140.59,140.53,3.5584]
[1727901873383,2.7823,140.58,140.53,3.5584]
[1727901873966,2.7823,140.58,140.54,3.558]
[1727901874170,2.7823,140.58,140.51,8.24502]
[1727901875074,2.7823,140.58,140.56,3.5577]
[1727901875666,1.12502,140.63,140.58,3.557]
[1727901875982,1.12502,140.63,140.57,35.45]
[1727901876367,1.12502,140.63,140.61,3.5562]
[1727901876966,1.12502,140.63,140.6,3.5566]
[1727901877575,1.12502,140.63,140.59,3.5568]
[1727901877981,1.12502,140.63,140.57,8.12]
[1727901878281,1.12502,140.63,140.56,8.12]
[1727901878585,3.5564,140.61,140.57,3.5572]
[1727901878986,1.12502,140.63,140.57,3.5572]
[1727901879585,1.12502,140.63,140.56,8.12]
[1727901879786,3.5565,140.61,140.58,3.5571]
[1727901881584,3.5568,140.6,140.57,3.5573]
[1727901881782,1.12502,140.63,140.54,8.12]
[1727901882086,3.5566,140.61,140.57,3.5572]
[1727901882782,3.5569,140.59,140.56,3.5576]
[1727901883186,3.5569,140.59,140.54,8.12]
[1727901883380,3.5569,140.59,140.55,3.5578]
[1727901883585,3.5567,140.6,140.54,8.12]
[1727901883800,1.12502,140.63,140.54,8.12]
[1727901883977,1.12502,140.63,140.57,3.5573]
[1727901884180,3.5567,140.61,140.57,3.5573]
[1727901884377,1.12502,140.63,140.57,3.5573]
[1727901884579,1.0,140.68,140.62,27.33]
[1727901884783,1.0,140.68,140.63,8.12]
[1727901885181,1.0,140.68,140.67,3.5549]
[1727901885589,1.0,140.68,140.63,8.12]
[1727901885789,1.0,140.68,140.6,27.33]
[1727901886392,3.555,140.67,140.6,27.33]
[1727901886584,1.0,140.7,140.66,27.33]
[1727901886789,1.0,140.7,140.68,27.33]
[1727901886987,1.0,140.7,140.69,3.57483309]
[1727901887193,1.0,140.73,140.69,7.12923309]
[1727901887387,1.0,140.73,140.69,3.57483309]
[1727901887788,1.0,140.73,140.68,27.33]
[1727901887994,1.0,140.73,140.69,3.49270615]
[1727901888992,1.0,140.73,140.67,27.33]
[1727901889298,1.0,140.73,140.72,3.5536]
[1727901889687,1.0,140.73,140.67,27.33]
[1727901889889,1.0,140.73,140.68,3.61731494]
[1727901890583,1.0,140.73,140.67,27.33]
[1727901890783,1.0,140.73,140.68,3.52316029]
[1727901891391,1.0,140.73,140.67,27.33]
[1727901891588,1.0,140.73,140.7,3.5541]
[1727901892387,1.0,140.73,140.67,27.33]
[1727901892388,1.0,140.73,140.68,3.5544]
[1727901892583,1.0,140.73,140.67,27.33]
[1727901893597,1.0,140.73,140.7,3.554]
[1727901895110,1.0,140.73,140.63,76.96502]
[1727901895111,1.0,140.73,140.65,8.12]
[1727901895706,1.0,140.73,140.68,3.5544]
[1727901895893,28.33,140.73,140.63,0.12502]
[1727901896092,28.33,140.73,140.66,3.5552]
[1727901896093,3.5544,140.69,140.66,3.5552]
[1727901896291,1.3741,140.72,140.63,0.12502]
[1727901897295,3.554,140.71,140.67,3.5547]
[1727901897998,3.5546,140.69,140.65,3.5552]
[1727901898500,3.56579338,140.71,140.63,0.12502]
[1727901898696,3.56579338,140.71,140.66,3.555]
[1727901898896,3.56579338,140.71,140.63,0.12502]
[1727901899104,3.57965699,140.7,140.65,3.5552]
[1727901899305,1.3529,140.7,140.65,3.5552]
[1727901899495,4.85826223,140.7,140.65,3.5552]
[1727901899697,4.85826223,140.7,140.63,0.12502]
[1727901899698,3.555,140.67,140.64,3.5556]
[1727901899907,3.55335167,140.69,140.63,0.12502]
[1727901900406,3.55335167,140.69,140.67,3.5548]
[1727901900612,1.3741,140.72,140.67,27.33]
[1727901901004,3.5541,140.71,140.67,3.5548]
[1727901901203,1.3741,140.72,140.67,3.5548]
[1727901901605,3.50379252,140.71,140.65,8.1]
[1727901902001,1.3741,140.72,140.63,0.12502]
[1727901902198,9.4741,140.72,140.63,0.12502]
[1727901902628,3.5556,140.65,140.63,0.12502]
[1727901903002,3.47677738,140.67,140.63,0.12502]
[1727901903203,1.4245,140.66,140.63,0.12502]
[1727901903509,1.4245,140.66,140.57,8.22502]
[1727901904415,3.5558,140.64,140.57,8.22502]
[1727901904912,3.5564,140.62,140.59,3.5568]
[1727901905307,1.4245,140.66,140.59,3.5568]
[1727901905512,1.4245,140.66,140.57,8.22502]
[1727901906013,3.556,140.63,140.57,8.22502]
[1727901906311,1.4245,140.66,140.6,3.5565]
[1727901906507,3.5558,140.64,140.57,8.22502]
[1727901906814,1.4245,140.66,140.57,8.22502]
[1727901907109,1.4245,140.66,140.6,3.5565]
[1727901907110,3.5562,140.63,140.6,3.5565]
[1727901907514,3.5562,140.63,140.57,39.12365677]
[1727901907515,3.63017112,140.63,140.57,39.12365677]
[1727901907713,3.5561,140.63,140.57,39.12365677]
[1727901907911,1.4245,140.66,140.57,39.12365677]
[1727901908106,3.5556,140.65,140.62,3.556]
[1727901909312,4.96966123,140.66,140.63,3.5557]
[1727901909313,8.52496123,140.66,140.63,3.5557]
[1727901910614,8.52496123,140.66,140.59,27.33]
[1727901910615,4.96966123,140.66,140.59,27.33]
[1727901910815,3.5556,140.65,140.62,3.5561]
[1727901911008,4.96966123,140.66,140.62,3.5561]
[1727901911208,4.96966123,140.66,140.57,27.45502]
[1727901911405,3.5559,140.63,140.57,27.45502]
[1727901911811,3.5559,140.63,140.6,3.5565]
[1727901912217,3.5562,140.62,140.57,0.12502]
[1727901912428,8.1,140.64,140.58,3.5571]
[1727901912722,3.5563,140.62,140.57,0.12502]
[1727901912912,8.1,140.64,140.57,27.45502]
[1727901913221,11.6558,140.64,140.57,27.45502]
[1727901913608,11.6558,140.64,140.61,3.5564]
[1727901913812,11.6558,140.64,140.57,0.12502]
[1727901913813,8.1,140.64,140.57,0.12502]
[1727901914422,3.5561,140.63,140.59,3.5567]
[1727901914920,3.5561,140.63,140.6,3.5565]
[1727901915421,9.4981,140.65,140.57,0.12502]
[1727901915815,9.4981,140.65,140.59,3.5568]
[1727901916025,3.5561,140.63,140.59,3.5568]
[1727901916619,9.4981,140.65,140.57,0.12502]
[1727901916817,3.5566,140.61,140.58,3.5572]
[1727901917642,3.5566,140.61,140.57,3.68232]
[1727901917821,1.0,140.64,140.57,0.12502]
[1727901918021,3.5564,140.62,140.57,0.12502]
[1727901918426,4.5557,140.64,140.57,17.20502]
[1727901918925,4.5557,140.64,140.61,3.5562]
[1727901919525,4.5557,140.64,140.57,17.20502]
[1727901919526,3.5559,140.63,140.57,17.20502]
[1727901919918,1.0,140.64,140.57,17.20502]
[1727901920119,1.0,140.64,140.6,3.5567]
[1727901920528,1.0,140.64,140.57,17.20502]
[1727901920723,4.5558,140.64,140.57,17.20502]
[1727901921121,4.5558,140.64,140.59,3.5569]
[1727901921324,4.5558,140.64,140.57,17.20502]
[1727901921628,3.556,140.63,140.57,17.20502]
[1727901922016,1.0,140.64,140.57,17.20502]
[1727901922418,4.5558,140.64,140.61,3.5564]
[1727901924319,1.4245,140.66,140.63,3.5559]
[1727901924514,3.49704217,140.68,140.62,17.08]
[1727901924719,0.12502,140.69,140.63,17.08]
[1727901924927,0.12502,140.69,140.68,3.5546]
[1727901929035,3.70005579,140.69,140.63,3.5557]
[1727901929234,3.70005579,140.69,140.57,7.23942]
[1727901929235,3.70005579,140.69,140.57,35.51502]
[1727901929430,1.3846,140.68,140.57,35.51502]
[1727901929735,3.5561,140.63,140.6,3.5565]
[1727901930227,35.39,140.65,140.57,0.12502]
[1727901930632,27.29,140.62,140.57,0.12502]
[1727901930928,8.1,140.61,140.57,0.12502]
[1727901931128,11.5757014,140.61,140.57,0.12502]
[1727901931333,8.1,140.61,140.57,0.12502]
[1727901931530,1.0,140.64,140.57,0.12502]
[1727901931725,1.0,140.64,140.63,3.5559]
[1727901932226,1.0,140.64,140.57,0.12502]
[1727901932623,0.12502,140.69,140.63,27.29]
[1727901932827,0.12502,140.69,140.68,3.5546]
[1727901933733,0.12502,140.69,140.63,30.76884056]
[1727901933928,3.61026006,140.69,140.58,36.8151]
[1727901934131,0.12502,140.69,140.58,36.8151]
[1727901934535,3.5547,140.68,140.58,36.8151]
[1727901934734,0.12502,140.69,140.58,36.8151]
[1727901934928,3.66607794,140.69,140.58,36.8151]
[1727901935234,3.5549,140.67,140.64,3.5556]
[1727901935427,7.04760615,140.67,140.64,3.5556]
[1727901935825,3.49270615,140.67,140.58,36.8151]
[1727901936030,0.12502,140.69,140.58,36.8151]
[1727901936437,0.12502,140.69,140.66,3.5551]
[1727901936640,3.7465932,140.69,140.66,3.5551]
[1727901936823,0.12502,140.69,140.66,3.5551]
[1727901937429,7.20604426,140.69,140.66,3.5551]
[1727901938242,0.12502,140.69,140.62,3.64468811]
[1727901938428,0.12502,140.69,140.61,27.29]
[1727901938729,0.12502,140.69,140.62,8.1]
[1727901938937,0.12502,140.69,140.67,3.5547]
[1727901939133,0.12502,140.69,140.62,8.1]
[1727901939737,0.12502,140.69,140.64,27.29]
[1727901940340,4.67802,140.75,140.66,27.29]
[1727901940531,4.67802,140.75,140.66,35.39]
[1727901940733,4.67802,140.75,140.67,1.438]
[1727901940933,4.67802,140.75,140.71,3.5537]
[1727901941134,1.12502,140.75,140.67,1.438]
[1727901941335,4.67802,140.75,140.67,1.438]
[1727901941535,1.12502,140.75,140.68,3.5544]
[1727901941844,1.12502,140.75,140.67,1.438]
[1727901942035,4.67792,140.75,140.71,3.5537]
[1727901942230,1.12502,140.75,140.67,1.438]
[1727901943443,3.5532,140.74,140.68,3.5544]
[1727901943640,1.12502,140.75,140.67,1.438]
[1727901944149,28.41502,140.75,140.63,8.59582]
[1727901944350,28.41502,140.75,140.63,35.88582]
[1727901944737,9.08,140.73,140.64,7.17425941]
[1727901944945,9.08,140.73,140.63,35.88582]
[1727901945145,3.5541,140.71,140.67,3.5547]
[1727901945451,3.57605053,140.7,140.63,8.20502]
[1727901945749,3.5543,140.7,140.66,3.555]
[1727901945947,3.47049626,140.7,140.63,0.12502]
[1727901946247,4.992,140.69,140.65,3.5552]
[1727901946948,1.4376,140.69,140.65,3.5552]
[1727901947148,3.5547,140.68,140.65,3.5552]
[1727901947547,1.4376,140.69,140.66,3.5552]
[1727901947745,1.4376,140.69,140.63,0.12502]
[1727901948443,3.5548,140.68,140.65,3.5553]
[1727901948649,9.5176,140.69,140.63,0.12502]
[1727901948845,1.3901,140.68,140.63,0.12502]
[1727901949047,3.5557,140.64,140.63,0.12502]
[1727901949452,28.6801,140.68,140.63,0.12502]
[1727901950946,27.29,140.66,140.57,7.31649044]
[1727901951147,8.1,140.65,140.57,0.12502]
[1727901952049,3.556,140.63,140.57,3.68242]
[1727901952245,8.1,140.65,140.57,3.68242]
[1727901952550,1.3767,140.62,140.57,3.68242]
[1727901952750,3.5567,140.6,140.57,3.68242]
[1727901953446,7.04595042,140.6,140.57,3.68242]
[1727901953648,3.5572,140.59,140.57,0.12502]
[1727901955058,7.04605042,140.6,140.57,0.12502]
[1727901955352,7.04605042,140.6,140.57,3.68242]
[1727901956143,8.1,140.61,140.57,0.12502]
[1727901956353,1.3767,140.62,140.57,0.12502]
[1727901956552,4.85196744,140.62,140.57,0.12502]
[1727901956755,3.5568,140.6,140.57,3.68242]
[1727901957054,7.07298224,140.6,140.57,3.68242]
[1727901957555,3.5569,140.59,140.57,0.12502]
[1727901958450,7.04060618,140.6,140.57,3.68242]
[1727901958655,1.3767,140.62,140.57,0.12502]
[1727901958845,4.9010652,140.62,140.57,0.12502]
[1727901959045,3.5571,140.59,140.57,0.12502]
[1727901960266,27.29,140.59,140.52,7.20404112]
[1727901960454,27.29,140.57,140.52,7.20404112]
[1727901960756,3.5587,140.52,140.51,0.12502]
[1727901961354,7.20200108,140.52,140.51,0.12502]
[1727901961553,39.01330108,140.52,140.47,1.001]
[1727901962752,3.5597,140.48,140.47,1.001]
[1727901963959,11.6397,140.48,140.47,1.001]
[1727901964264,8.08,140.48,140.42,1.001]
[1727901964453,27.29,140.46,140.42,1.001]
[1727901964760,1.48682,140.51,140.42,1.001]
[1727901964946,35.37,140.5,140.42,1.001]
[1727901965454,35.37,140.5,140.42,4.562]
[1727901965759,3.5604,140.46,140.42,4.562]
[1727901965959,1.48682,140.51,140.47,3.5598]
[1727901966174,3.5595,140.49,140.42,1.001]
[1727901966460,1.48682,140.51,140.45,3.5605]
[1727901966760,3.5597,140.49,140.45,3.5605]
[1727901967255,1.48682,140.51,140.44,3.5605]
[1727901967452,1.48682,140.51,140.42,1.001]
[1727901968058,1.48682,140.51,140.48,3.5597]
[1727901968059,13.12582,140.51,140.48,3.5597]
[1727901968263,9.56682,140.51,140.42,1.001]
[1727901969159,3.5594,140.5,140.46,3.5601]
[1727901969552,36.85682,140.51,140.42,1.001]
[1727901969750,3.5596,140.49,140.45,3.5603]
[1727901970059,36.85682,140.51,140.42,1.001]
[1727901970360,3.5602,140.47,140.42,1.001]
[1727901970558,27.29,140.49,140.42,1.001]
[1727901970750,3.5607,140.45,140.42,4.5621]
[1727901972062,3.58165575,140.44,140.42,4.5621]
[1727901974862,3.561,140.43,140.42,1.001]
[1727901976959,8.08,140.43,140.4,1.001]
[1727901977262,3.5615,140.41,140.4,1.001]
[1727901983377,8.08,140.43,140.4,1.001]
[1727901983574,3.5614,140.42,140.4,1.001]
[1727901984479,8.08,140.47,140.4,1.001]
[1727901984885,8.08,140.47,140.44,3.5606]
[1727901985181,11.64,140.47,140.44,3.5606]
[1727901985579,8.08,140.47,140.4,1.001]
[1727901986184,8.08,140.47,140.4,2.3577]
[1727901986386,8.08,140.47,140.45,3.5603]
[1727901986686,2.8045,140.49,140.4,2.3577]
[1727901986885,6.364,140.49,140.46,3.56]
[1727901987387,8.20502,140.51,140.41,30.92721291]
[1727901989174,0.12502,140.51,140.41,30.92721291]
[1727901989481,0.12502,140.51,140.44,27.29]
[1727901989781,0.12502,140.51,140.5,3.5592]
[1727901989972,77.04502,140.57,140.46,27.29]
[1727901989973,0.12502,140.57,140.48,27.29]
[1727901990373,0.12502,140.57,140.47,1.3371]
[1727901990583,3.5587,140.52,140.49,3.5593]
[1727901990782,0.12502,140.57,140.47,1.3371]
[1727901990783,3.50779217,140.53,140.47,1.3371]
[1727901990989,27.29,140.55,140.45,2.85242]
[1727901990990,8.06,140.54,140.45,2.85242]
[1727901991178,8.06,140.54,140.46,3.5601]
[1727901991179,3.5596,140.49,140.46,3.5601]
[1727901991378,27.29,140.53,140.45,1.47882]
[1727901991782,3.5598,140.48,140.45,3.68532]
[1727901992586,8.06,140.5,140.45,0.12502]
[1727901993180,3.5596,140.49,140.45,0.12502]
[1727901993381,8.06,140.5,140.45,0.12502]
[1727901993788,3.5602,140.47,140.45,0.12502]
[1727901993982,8.06,140.5,140.45,0.12502]
[1727901994490,3.5602,140.46,140.45,0.12502]
[1727901995494,7.18290947,140.46,140.45,0.12502]
[1727901997092,3.5614,140.42,140.4,1.001]
[1727901997287,38.97270947,140.46,140.4,1.001]
[1727901997585,3.5607,140.45,140.4,1.001]
[1727901997776,38.97270947,140.46,140.4,1.001]
[1727901998488,3.5612,140.43,140.4,1.001]
[1727901998689,3.5612,140.43,140.4,4.5627]
[1727902000392,38.97270947,140.46,140.4,1.001]
[1727902001290,38.97270947,140.46,140.4,4.5627]
[1727902001879,3.5612,140.43,140.4,4.5627]
[1727902002290,38.97270947,140.46,140.4,1.001]
[1727902002487,3.5615,140.41,140.4,1.001]
[1727902003192,38.97270947,140.46,140.4,1.001]
[1727902003601,30.91270947,140.46,140.4,1.001]
[1727902003791,3.5614,140.42,140.4,1.001]
[1727902004295,8.06,140.45,140.4,1.001]
[1727902004296,3.5615,140.41,140.4,1.001]
[1727902004489,7.07776689,140.41,140.4,1.001]
[1727902008391,15.15776689,140.41,140.4,1.001]
[1727902008698,4.1355,140.47,140.4,1.001]
[1727902008699,3.5605,140.45,140.4,1.001]
[1727902008902,25.18,140.46,140.4,1.001]
[1727902009296,3.48852208,140.45,140.4,1.001]
[1727902009993,17.1,140.44,140.4,1.001]
[1727902010296,17.1,140.42,140.4,1.001]
[1727902010495,25.18,140.42,140.4,1.001]
[1727902010690,3.5615,140.41,140.4,1.001]
[1727902011096,7.09597994,140.41,140.4,1.001]
[1727902012603,8.08,140.42,140.4,1.001]
[1727902013291,3.5615,140.41,140.4,1.001]
[1727902015605,27.37,140.41,140.37,1.001]
[1727902015905,27.37,140.38,140.35,1.001]
[1727902016205,35.41,140.38,140.35,1.001]
[1727902016898,3.5628,140.36,140.35,1.001]
[1727902017506,3.5633,140.34,140.33,0.12502]
[1727902020209,3.5633,140.34,140.32,1.001]
[1727902020210,3.5635,140.33,140.32,1.001]
[1727902021504,35.43,140.34,140.3,1.001]
[1727902021709,27.37,140.31,140.27,1.12602]
[1727902022010,3.5648,140.28,140.27,1.12602]
[1727902022200,11.64242648,140.35,140.27,4.73620489]
[1727902022404,11.64242648,140.35,140.31,3.5639]
[1727902022906,15.20552648,140.35,140.27,4.66169826]
[1727902023204,27.37,140.36,140.27,4.66169826]
[1727902023410,8.18502,140.39,140.29,27.37]
[1727902023707,8.18502,140.39,140.3,2.7821]
[1727902023911,11.74702,140.39,140.3,2.7821]
[1727902024206,11.74702,140.39,140.31,1.4179]
[1727902024410,11.74702,140.39,140.35,3.5629]
[1727902026612,11.74702,140.39,140.35,3.5628]
[1727902026906,8.18502,140.39,140.31,1.4179]
[1727902027312,35.55502,140.39,140.31,1.4179]
[1727902028105,3.5634,140.34,140.31,1.4179]
[1727902028509,3.5634,140.34,140.31,4.9819]
[1727902029211,0.12502,140.39,140.31,9.4779]
[1727902029518,0.12502,140.39,140.32,27.37]
[1727902029705,0.12502,140.39,140.38,3.5622]
[1727902033521,0.12502,140.39,140.37,3.5625]
[1727902033818,0.12502,140.39,140.35,11.70146334]
[1727902034022,0.12502,140.39,140.38,3.5622]
[1727902034416,0.12502,140.45,140.35,11.70146334]
[1727902034617,3.5609,140.44,140.35,11.70146334]
[1727902035008,0.12502,140.45,140.39,27.37]
[1727902035211,0.12502,140.45,140.44,3.5607]
[1727902035921,0.12502,140.51,140.44,3.51641162]
[1727902036117,0.12502,140.51,140.44,8.06]
[1727902036322,0.12502,140.51,140.44,38.97705107]
[1727902037015,0.12502,140.51,140.48,3.5596]
[1727902037413,0.12502,140.51,140.44,38.97705107]
[1727902037614,0.12502,140.51,140.44,11.60705107]
[1727902038012,3.5594,140.5,140.47,3.56]
[1727902038616,3.5595,140.49,140.46,3.5601]
[1727902038918,0.12502,140.51,140.44,11.60705107]
[1727902039424,3.5593,140.5,140.47,3.5598]
[1727902040309,0.12502,140.51,140.45,3.5604]
[1727902040310,3.5597,140.48,140.45,3.5604]
[1727902040515,0.12502,140.51,140.43,8.04]
[1727902040719,0.12502,140.51,140.44,3.49753773]
[1727902041228,3.5595,140.49,140.46,3.56]
[1727902041522,0.12502,140.51,140.44,3.49753773]
[1727902041727,3.5593,140.5,140.47,3.5599]
[1727902042028,0.12502,140.51,140.43,9.4754]
[1727902042221,3.5595,140.49,140.46,3.5601]
[1727902042924,0.12502,140.51,140.5,3.5592]
[1727902043428,3.68402,140.51,140.48,3.5595]
[1727902043626,0.12502,140.51,140.48,3.5595]
[1727902044023,0.12502,140.51,140.47,11.5999]
[1727902044325,0.12502,140.51,140.47,3.5599]
[1727902045114,0.12502,140.51,140.43,9.4554]
[1727902045530,0.12502,140.51,140.46,3.5602]
[1727902045531,3.5593,140.5,140.46,3.5602]
[1727902045830,0.12502,140.51,140.43,13.06238223]
[1727902046031,3.5597,140.49,140.46,3.5602]
[1727902046217,0.12502,140.51,140.43,13.06238223]
[1727902046422,0.12502,140.51,140.44,27.37]
[1727902046617,0.12502,140.51,140.48,3.5595]